[Event "Titled Tuesday Blitz February 14 Early 2023"]
[White "Ruge, Edison"]
[Black "Bon, Michael"]
[WhiteFideId "4401000"]
[BlackFideId "620696"]
[WhiteElo "2201"]
[BlackElo "2394"]
[Result "0-1"]
[Round "07"]
[TimeControl "180+2"]
[Date "2023.02.15"]
[WhiteClock "0:00:21"]
[BlackClock "0:00:03"]

1. e4 {[%clk 0:02:59]}  c5 {[%clk 0:02:56]} 2. Nf3 {[%clk 0:02:59]}  d6 {[%clk 0:02:56]} 3. d3 {[%clk 0:03:00]}  Nc6 {[%clk 0:02:55]} 4. Nbd2 {[%clk 0:03:00]}  g6 {[%clk 0:02:56]} 5. g3 {[%clk 0:03:01]}  Bg7 {[%clk 0:02:56]} 6. Bg2 {[%clk 0:03:02]}  Nf6 {[%clk 0:02:56]} 7. O-O {[%clk 0:03:02]}  O-O {[%clk 0:02:56]} 8. c3 {[%clk 0:03:02]}  b5 {[%clk 0:02:53]} 9. h3 {[%clk 0:03:02]}  b4 {[%clk 0:02:53]} 10. c4 {[%clk 0:03:00]}  a5 {[%clk 0:02:46]} 11. Re1 {[%clk 0:03:00]}  Nd7 {[%clk 0:02:37]} 12. Rb1 {[%clk 0:02:58]}  a4 {[%clk 0:02:37]} 13. Nf1 {[%clk 0:02:57]}  e6 {[%clk 0:02:30]} 14. Bf4 {[%clk 0:02:55]}  Nde5 {[%clk 0:02:24]} 15. g4 {[%clk 0:02:46]}  a3 {[%clk 0:02:11]} 16. b3 {[%clk 0:02:45]}  Nxf3+ {[%clk 0:02:02]} 17. Bxf3 {[%clk 0:02:44]}  Nd4 {[%clk 0:02:01]} 18. Bg2 {[%clk 0:02:43]}  Bb7 {[%clk 0:01:57]} 19. Qd2 {[%clk 0:02:38]}  Kh8 {[%clk 0:01:43]} 20. Bh6 {[%clk 0:02:34]}  Bxh6 {[%clk 0:01:42]} 21. Qxh6 {[%clk 0:02:34]}  e5 {[%clk 0:01:42]} 22. Ne3 {[%clk 0:02:27]}  Qf6 {[%clk 0:01:42]} 23. Nf5 {[%clk 0:02:11]}  Rg8 {[%clk 0:01:14]} 24. g5 {[%clk 0:02:01]}  Qe6 {[%clk 0:01:02]} 25. Nxd4 {[%clk 0:01:56]}  cxd4 {[%clk 0:01:03]} 26. Qh4 {[%clk 0:01:52]}  f6 {[%clk 0:00:51]} 27. gxf6 {[%clk 0:01:49]}  Rgf8 {[%clk 0:00:39]} 28. f4 {[%clk 0:01:49]}  Rxf6 {[%clk 0:00:38]} 29. fxe5 {[%clk 0:01:47]}  dxe5 {[%clk 0:00:39]} 30. Rf1 {[%clk 0:01:47]}  Raf8 {[%clk 0:00:39]} 31. Rxf6 {[%clk 0:01:44]}  Rxf6 {[%clk 0:00:36]} 32. Rf1 {[%clk 0:01:44]}  Kg7 {[%clk 0:00:36]} 33. Bf3 {[%clk 0:01:28]}  Rf4 {[%clk 0:00:18]} 34. Qg3 {[%clk 0:01:09]}  Qf6 {[%clk 0:00:18]} 35. Kg2 {[%clk 0:00:58]}  h5 {[%clk 0:00:17]} 36. Be2 {[%clk 0:00:57]}  Kh6 {[%clk 0:00:16]} 37. Rxf4 {[%clk 0:00:56]}  exf4 {[%clk 0:00:17]} 38. Qf2 {[%clk 0:00:52]}  g5 {[%clk 0:00:17]} 39. Bf3 {[%clk 0:00:49]}  Qe5 {[%clk 0:00:16]} 40. Qe2 {[%clk 0:00:46]}  Bc8 {[%clk 0:00:16]} 41. Bxh5 {[%clk 0:00:45]}  Be6 {[%clk 0:00:13]} 42. Bg4 {[%clk 0:00:45]}  Bf7 {[%clk 0:00:13]} 43. Kf3 {[%clk 0:00:43]}  Be8 {[%clk 0:00:12]} 44. Qd2 {[%clk 0:00:43]}  Qc5 {[%clk 0:00:10]} 45. Qe1 {[%clk 0:00:42]}  Bc6 {[%clk 0:00:10]} 46. h4 {[%clk 0:00:41]}  Kg6 {[%clk 0:00:08]} 47. hxg5 {[%clk 0:00:41]}  Qxg5 {[%clk 0:00:08]} 48. Qxb4 {[%clk 0:00:41]}  Qh4 {[%clk 0:00:08]} 49. Qd6+ {[%clk 0:00:40]}  Kg7 {[%clk 0:00:07]} 50. Qxc6 {[%clk 0:00:39]}  Qg3+ {[%clk 0:00:07]} 51. Ke2 {[%clk 0:00:39]}  Qxg4+ {[%clk 0:00:07]} 52. Kd2 {[%clk 0:00:37]}  Qg2+ {[%clk 0:00:07]} 53. Kd1 {[%clk 0:00:37]}  Qf1+ {[%clk 0:00:07]} 54. Kd2 {[%clk 0:00:37]}  Qf2+ {[%clk 0:00:08]} 55. Kd1 {[%clk 0:00:37]}  Qf3+ {[%clk 0:00:08]} 56. Kd2 {[%clk 0:00:36]}  Qe3+ {[%clk 0:00:08]} 57. Kc2 {[%clk 0:00:35]}  Qe2+ {[%clk 0:00:08]} 58. Kc1 {[%clk 0:00:35]}  Qe1+ {[%clk 0:00:08]} 59. Kc2 {[%clk 0:00:35]}  Qc3+ {[%clk 0:00:09]} 60. Kd1 {[%clk 0:00:34]}  Qxd3+ {[%clk 0:00:09]} 61. Ke1 {[%clk 0:00:35]}  Qe3+ {[%clk 0:00:09]} 62. Kf1 {[%clk 0:00:35]}  f3 {[%clk 0:00:09]} 63. Qd7+ {[%clk 0:00:32]}  Kh6 {[%clk 0:00:08]} 64. Qh3+ {[%clk 0:00:30]}  Kg5 {[%clk 0:00:07]} 65. Qg3+ {[%clk 0:00:29]}  Kf6 {[%clk 0:00:07]} 66. Qd6+ {[%clk 0:00:29]}  Kg5 {[%clk 0:00:06]} 67. Qg3+ {[%clk 0:00:28]}  Kh5 {[%clk 0:00:06]} 68. Qh3+ {[%clk 0:00:28]}  Kg6 {[%clk 0:00:07]} 69. Qf5+ {[%clk 0:00:27]}  Kh6 {[%clk 0:00:06]} 70. Qf6+ {[%clk 0:00:27]}  Kh5 {[%clk 0:00:06]} 71. Qf5+ {[%clk 0:00:27]}  Qg5 {[%clk 0:00:05]} 72. Qxg5+ {[%clk 0:00:24]}  Kxg5 {[%clk 0:00:05]} 73. c5 {[%clk 0:00:24]}  d3 {[%clk 0:00:02]} 74. Ke1 {[%clk 0:00:22]}  Kf4 {[%clk 0:00:03]} 75. c6 {[%clk 0:00:22]}  Ke3 {[%clk 0:00:03]} 76. c7 {[%clk 0:00:22]}  d2+ {[%clk 0:00:03]} 77. Kd1 {[%clk 0:00:21]}  f2 {[%clk 0:00:03]} 0-1


[Site "https://www.chess.com"]

[Event "Titled Tuesday Blitz February 14 Early 2023"]
[White "Fiorito, Joaquin"]
[Black "rikchessmx"]
[WhiteFideId "180173"]
[WhiteElo "2405"]
[BlackElo "2312"]
[Result "0-1"]
[Round "07"]
[TimeControl "180+2"]
[Date "2023.02.15"]
[WhiteClock "0:00:21"]
[BlackClock "0:00:19"]

1. d4 {[%clk 0:03:00]}  d5 {[%clk 0:03:00]} 2. Nc3 {[%clk 0:03:00]}  e6 {[%clk 0:03:00]} 3. Bf4 {[%clk 0:03:01]}  Bd6 {[%clk 0:02:59]} 4. Bxd6 {[%clk 0:02:58]}  cxd6 {[%clk 0:03:00]} 5. e4 {[%clk 0:02:58]}  dxe4 {[%clk 0:03:00]} 6. Nxe4 {[%clk 0:02:59]}  Nf6 {[%clk 0:02:59]} 7. Nxf6+ {[%clk 0:02:58]}  Qxf6 {[%clk 0:02:59]} 8. Nf3 {[%clk 0:02:59]}  O-O {[%clk 0:02:58]} 9. Bd3 {[%clk 0:02:59]}  e5 {[%clk 0:02:57]} 10. O-O {[%clk 0:02:58]}  Bg4 {[%clk 0:02:56]} 11. Be4 {[%clk 0:02:58]}  Nc6 {[%clk 0:02:55]} 12. h3 {[%clk 0:02:39]}  Bxf3 {[%clk 0:02:53]} 13. Bxf3 {[%clk 0:02:40]}  Nxd4 {[%clk 0:02:53]} 14. Bxb7 {[%clk 0:02:40]}  Rab8 {[%clk 0:02:53]} 15. Be4 {[%clk 0:02:26]}  Rxb2 {[%clk 0:02:44]} 16. c3 {[%clk 0:02:20]}  Ne2+ {[%clk 0:02:43]} 17. Kh1 {[%clk 0:02:20]}  Nf4 {[%clk 0:02:35]} 18. Qc1 {[%clk 0:02:13]}  Rfb8 {[%clk 0:02:18]} 19. Qe3 {[%clk 0:02:12]}  d5 {[%clk 0:02:12]} 20. Bf3 {[%clk 0:02:10]}  e4 {[%clk 0:02:09]} 21. Bd1 {[%clk 0:02:11]}  Qg5 {[%clk 0:02:00]} 22. Rg1 {[%clk 0:02:03]}  Qh4 {[%clk 0:01:53]} 23. Bg4 {[%clk 0:01:51]}  Nd3 {[%clk 0:01:41]} 24. f3 {[%clk 0:01:42]}  h5 {[%clk 0:01:23]} 25. Bd7 {[%clk 0:01:37]}  Nf2+ {[%clk 0:01:16]} 26. Kh2 {[%clk 0:01:37]}  Qe7 {[%clk 0:01:15]} 27. Ba4 {[%clk 0:01:31]}  Qd6+ {[%clk 0:01:09]} 28. f4 {[%clk 0:01:31]}  Nd3 {[%clk 0:01:03]} 29. Raf1 {[%clk 0:01:29]}  Rxa2 {[%clk 0:01:02]} 30. Bd1 {[%clk 0:01:26]}  Rbb2 {[%clk 0:00:53]} 31. Bxh5 {[%clk 0:01:17]}  g5 {[%clk 0:00:52]} 32. Qg3 {[%clk 0:01:11]}  Nxf4 {[%clk 0:00:49]} 33. Qxg5+ {[%clk 0:01:10]}  Ng6+ {[%clk 0:00:49]} 34. Kh1 {[%clk 0:01:10]}  Kg7 {[%clk 0:00:46]} 35. Bxg6 {[%clk 0:00:44]}  Qxg6 {[%clk 0:00:45]} 36. Rxf7+ {[%clk 0:00:36]}  Kxf7 {[%clk 0:00:42]} 37. Rf1+ {[%clk 0:00:37]}  Rf2 {[%clk 0:00:37]} 38. Qxd5+ {[%clk 0:00:37]}  Kg7 {[%clk 0:00:31]} 39. Qd4+ {[%clk 0:00:31]}  Qf6 {[%clk 0:00:31]} 40. Qd7+ {[%clk 0:00:28]}  Kg6 {[%clk 0:00:28]} 41. Qg4+ {[%clk 0:00:27]}  Kh7 {[%clk 0:00:25]} 42. Qh5+ {[%clk 0:00:26]}  Kg8 {[%clk 0:00:24]} 43. Qe8+ {[%clk 0:00:25]}  Kg7 {[%clk 0:00:23]} 44. Qd7+ {[%clk 0:00:26]}  Kh6 {[%clk 0:00:23]} 45. Rg1 {[%clk 0:00:21]}  Rxg2 {[%clk 0:00:19]} 0-1


[Site "https://www.chess.com"]

[Event "Titled Tuesday Blitz February 14 Early 2023"]
[White "Dong, Khanh Linh"]
[Black "Danielyan, Vahe"]
[WhiteFideId "12403040"]
[BlackFideId "13304828"]
[WhiteElo "1900"]
[BlackElo "2346"]
[Result "0-1"]
[Round "07"]
[TimeControl "180+2"]
[Date "2023.02.15"]
[WhiteClock "0:00:01"]
[BlackClock "0:01:47"]

1. e4 {[%clk 0:03:00]}  c5 {[%clk 0:03:00]} 2. Nf3 {[%clk 0:02:59]}  d6 {[%clk 0:03:00]} 3. d4 {[%clk 0:03:00]}  cxd4 {[%clk 0:03:01]} 4. Nxd4 {[%clk 0:03:00]}  Nf6 {[%clk 0:03:02]} 5. Nc3 {[%clk 0:03:01]}  a6 {[%clk 0:03:01]} 6. Bg5 {[%clk 0:03:01]}  e6 {[%clk 0:03:01]} 7. f4 {[%clk 0:03:01]}  Nbd7 {[%clk 0:03:01]} 8. Qf3 {[%clk 0:03:01]}  Qc7 {[%clk 0:03:01]} 9. O-O-O {[%clk 0:03:01]}  Be7 {[%clk 0:03:01]} 10. g4 {[%clk 0:02:56]}  h6 {[%clk 0:03:01]} 11. Bh4 {[%clk 0:02:52]}  g5 {[%clk 0:03:01]} 12. Bf2 {[%clk 0:02:46]}  gxf4 {[%clk 0:02:59]} 13. h4 {[%clk 0:01:35]}  b5 {[%clk 0:02:56]} 14. g5 {[%clk 0:01:29]}  Ne5 {[%clk 0:02:53]} 15. Qxf4 {[%clk 0:01:27]}  hxg5 {[%clk 0:02:53]} 16. hxg5 {[%clk 0:01:25]}  Nh5 {[%clk 0:02:51]} 17. Qd2 {[%clk 0:01:13]}  b4 {[%clk 0:02:51]} 18. Na4 {[%clk 0:00:52]}  Bd7 {[%clk 0:02:50]} 19. Qxb4 {[%clk 0:00:41]}  d5 {[%clk 0:02:49]} 20. Qc3 {[%clk 0:00:23]}  Bxg5+ {[%clk 0:02:42]} 21. Kb1 {[%clk 0:00:20]}  Qxc3 {[%clk 0:02:29]} 22. Nxc3 {[%clk 0:00:19]}  Ng4 {[%clk 0:02:29]} 23. Bg1 {[%clk 0:00:15]}  Ke7 {[%clk 0:02:26]} 24. Be2 {[%clk 0:00:15]}  Nhf6 {[%clk 0:02:01]} 25. Rxh8 {[%clk 0:00:14]}  Rxh8 {[%clk 0:02:02]} 26. exd5 {[%clk 0:00:13]}  exd5 {[%clk 0:02:01]} 27. Bxg4 {[%clk 0:00:09]}  Bxg4 {[%clk 0:02:00]} 28. Re1+ {[%clk 0:00:09]}  Kf8 {[%clk 0:02:01]} 29. Bf2 {[%clk 0:00:09]}  Rh2 {[%clk 0:01:57]} 30. Bg3 {[%clk 0:00:09]}  Rg2 {[%clk 0:01:58]} 31. Bd6+ {[%clk 0:00:09]}  Kg7 {[%clk 0:01:58]} 32. Nce2 {[%clk 0:00:06]}  Bh4 {[%clk 0:01:52]} 33. Rg1 {[%clk 0:00:05]}  Rxg1+ {[%clk 0:01:50]} 34. Nxg1 {[%clk 0:00:06]}  Ne4 {[%clk 0:01:49]} 35. Be5+ {[%clk 0:00:04]}  f6 {[%clk 0:01:49]} 36. Bc7 {[%clk 0:00:04]}  Nd2+ {[%clk 0:01:47]} 37. Ka1 {[%clk 0:00:03]}  Bg5 {[%clk 0:01:48]} 38. Nge2 {[%clk 0:00:03]}  f5 {[%clk 0:01:47]} 39. Be5+ {[%clk 0:00:01]}  Kg6 {[%clk 0:01:47]} 40. c3 {[%clk 0:00:02]}  f4 {[%clk 0:01:48]} 41. Ng1 {[%clk 0:00:01]}  Nc4 {[%clk 0:01:47]} 0-1


[Site "https://www.chess.com"]

[Event "Titled Tuesday Blitz February 14 Early 2023"]
[White "Bozorov, Makhsum"]
[Black "Sovetbekova, Nurai"]
[WhiteFideId "14201330"]
[BlackFideId "13801910"]
[WhiteElo "2145"]
[BlackElo "1764"]
[Result "1-0"]
[Round "07"]
[TimeControl "180+2"]
[Date "2023.02.15"]
[WhiteClock "0:00:18"]
[BlackClock "0:00:02"]

1. d4 {[%clk 0:03:00]}  Nf6 {[%clk 0:02:59]} 2. Nf3 {[%clk 0:02:59]}  g6 {[%clk 0:02:59]} 3. g3 {[%clk 0:03:00]}  Bg7 {[%clk 0:03:00]} 4. Bg2 {[%clk 0:03:00]}  c5 {[%clk 0:02:56]} 5. O-O {[%clk 0:03:00]}  O-O {[%clk 0:02:52]} 6. c4 {[%clk 0:02:57]}  d6 {[%clk 0:02:45]} 7. d5 {[%clk 0:02:57]}  b5 {[%clk 0:02:44]} 8. cxb5 {[%clk 0:02:56]}  a6 {[%clk 0:02:44]} 9. bxa6 {[%clk 0:02:56]}  Nxa6 {[%clk 0:02:44]} 10. Nc3 {[%clk 0:02:56]}  Bf5 {[%clk 0:02:43]} 11. Re1 {[%clk 0:02:54]}  Ne4 {[%clk 0:02:18]} 12. Nxe4 {[%clk 0:02:50]}  Bxe4 {[%clk 0:02:17]} 13. Ng5 {[%clk 0:02:33]}  Bxg2 {[%clk 0:02:16]} 14. Kxg2 {[%clk 0:02:34]}  Nb4 {[%clk 0:02:05]} 15. a3 {[%clk 0:02:31]}  Qb6 {[%clk 0:01:57]} 16. Rb1 {[%clk 0:02:15]}  Na6 {[%clk 0:01:47]} 17. Bd2 {[%clk 0:02:13]}  Rfb8 {[%clk 0:01:29]} 18. e4 {[%clk 0:02:00]}  Nc7 {[%clk 0:01:20]} 19. h4 {[%clk 0:01:48]}  h6 {[%clk 0:01:15]} 20. Nf3 {[%clk 0:01:47]}  Nb5 {[%clk 0:01:12]} 21. Be3 {[%clk 0:01:41]}  Qb7 {[%clk 0:00:58]} 22. a4 {[%clk 0:01:22]}  Nc7 {[%clk 0:00:54]} 23. b3 {[%clk 0:01:21]}  Na6 {[%clk 0:00:48]} 24. Bf4 {[%clk 0:01:14]}  Nb4 {[%clk 0:00:46]} 25. Qd2 {[%clk 0:01:12]}  Kh7 {[%clk 0:00:45]} 26. Rbd1 {[%clk 0:01:03]}  Na6 {[%clk 0:00:25]} 27. Rb1 {[%clk 0:01:03]}  Qd7 {[%clk 0:00:21]} 28. e5 {[%clk 0:01:00]}  dxe5 {[%clk 0:00:20]} 29. Nxe5 {[%clk 0:00:57]}  Bxe5 {[%clk 0:00:20]} 30. Rxe5 {[%clk 0:00:55]}  Rb4 {[%clk 0:00:17]} 31. Rbe1 {[%clk 0:00:52]}  Rd4 {[%clk 0:00:16]} 32. Qc1 {[%clk 0:00:49]}  Re8 {[%clk 0:00:13]} 33. Bxh6 {[%clk 0:00:47]}  Rxd5 {[%clk 0:00:13]} 34. Bf4 {[%clk 0:00:46]}  Rd4 {[%clk 0:00:10]} 35. h5 {[%clk 0:00:40]}  Qb7+ {[%clk 0:00:09]} 36. Kg1 {[%clk 0:00:37]}  Qxb3 {[%clk 0:00:08]} 37. hxg6+ {[%clk 0:00:36]}  fxg6 {[%clk 0:00:06]} 38. Rxe7+ {[%clk 0:00:35]}  Rxe7 {[%clk 0:00:07]} 39. Rxe7+ {[%clk 0:00:35]}  Kg8 {[%clk 0:00:08]} 40. Re1 {[%clk 0:00:35]}  Qf3 {[%clk 0:00:06]} 41. Qb1 {[%clk 0:00:31]}  Kg7 {[%clk 0:00:05]} 42. Qb6 {[%clk 0:00:20]}  Nb4 {[%clk 0:00:04]} 43. Qc7+ {[%clk 0:00:19]}  Kg8 {[%clk 0:00:02]} 44. Re8# {[%clk 0:00:18]} 1-0


[Site "https://www.chess.com"]

[Event "Titled Tuesday Blitz February 14 Early 2023"]
[White "Fernandez Garcia, Gumersindo"]
[Black "Schut, Han"]
[WhiteFideId "24516740"]
[BlackFideId "1005561"]
[WhiteElo "2160"]
[BlackElo "2101"]
[Result "1-0"]
[Round "07"]
[TimeControl "180+2"]
[Date "2023.02.15"]
[WhiteClock "0:00:17"]
[BlackClock "0:00:12"]

1. e4 {[%clk 0:03:00]}  c5 {[%clk 0:02:58]} 2. Nf3 {[%clk 0:02:58]}  d6 {[%clk 0:02:58]} 3. d4 {[%clk 0:02:59]}  cxd4 {[%clk 0:02:59]} 4. Nxd4 {[%clk 0:02:59]}  Nf6 {[%clk 0:03:00]} 5. Nc3 {[%clk 0:02:59]}  a6 {[%clk 0:03:00]} 6. Be2 {[%clk 0:02:57]}  e5 {[%clk 0:03:00]} 7. Nb3 {[%clk 0:02:57]}  Be6 {[%clk 0:03:01]} 8. O-O {[%clk 0:02:56]}  Nbd7 {[%clk 0:03:01]} 9. a4 {[%clk 0:02:57]}  Be7 {[%clk 0:03:01]} 10. a5 {[%clk 0:02:55]}  Qc7 {[%clk 0:03:01]} 11. Be3 {[%clk 0:02:54]}  Qc6 {[%clk 0:03:02]} 12. Bf3 {[%clk 0:02:45]}  O-O {[%clk 0:02:57]} 13. Qd2 {[%clk 0:02:38]}  Rfd8 {[%clk 0:02:47]} 14. Rfd1 {[%clk 0:02:37]}  Bxb3 {[%clk 0:02:47]} 15. cxb3 {[%clk 0:02:35]}  Nc5 {[%clk 0:02:47]} 16. Nd5 {[%clk 0:02:00]}  Kf8 {[%clk 0:02:17]} 17. Bxc5 {[%clk 0:01:52]}  dxc5 {[%clk 0:02:12]} 18. Rac1 {[%clk 0:01:52]}  Nxd5 {[%clk 0:02:06]} 19. exd5 {[%clk 0:01:51]}  Qd6 {[%clk 0:02:06]} 20. Qe3 {[%clk 0:01:46]}  f5 {[%clk 0:01:58]} 21. g3 {[%clk 0:01:26]}  h6 {[%clk 0:01:53]} 22. Bg2 {[%clk 0:01:25]}  Bg5 {[%clk 0:01:44]} 23. f4 {[%clk 0:01:24]}  exf4 {[%clk 0:01:43]} 24. Qxc5 {[%clk 0:01:17]}  fxg3 {[%clk 0:01:40]} 25. Qxd6+ {[%clk 0:01:15]}  Rxd6 {[%clk 0:01:39]} 26. Rc7 {[%clk 0:01:16]}  gxh2+ {[%clk 0:01:33]} 27. Kxh2 {[%clk 0:01:17]}  Rxd5 {[%clk 0:01:30]} 28. Rxd5 {[%clk 0:00:45]}  Bf4+ {[%clk 0:01:30]} 29. Kh3 {[%clk 0:00:44]}  Bxc7 {[%clk 0:01:30]} 30. Rxf5+ {[%clk 0:00:44]}  Ke7 {[%clk 0:01:20]} 31. Bxb7 {[%clk 0:00:42]}  Ra7 {[%clk 0:01:06]} 32. Bd5 {[%clk 0:00:39]}  g5 {[%clk 0:01:06]} 33. Bc4 {[%clk 0:00:37]}  Kd6 {[%clk 0:00:40]} 34. Rf6+ {[%clk 0:00:37]}  Ke5 {[%clk 0:00:37]} 35. Rxh6 {[%clk 0:00:28]}  Bxa5 {[%clk 0:00:36]} 36. Kg4 {[%clk 0:00:27]}  Bd2 {[%clk 0:00:31]} 37. Bxa6 {[%clk 0:00:25]}  Bc1 {[%clk 0:00:31]} 38. Bc4 {[%clk 0:00:24]}  Bxb2 {[%clk 0:00:30]} 39. Re6+ {[%clk 0:00:21]}  Kd4 {[%clk 0:00:27]} 40. Kxg5 {[%clk 0:00:21]}  Ba3 {[%clk 0:00:26]} 41. Kf5 {[%clk 0:00:21]}  Kc3 {[%clk 0:00:26]} 42. Re3+ {[%clk 0:00:20]}  Kb4 {[%clk 0:00:25]} 43. Re5 {[%clk 0:00:19]}  Ra5 {[%clk 0:00:25]} 44. Bd5 {[%clk 0:00:16]}  Bb2 {[%clk 0:00:23]} 45. Re4+ {[%clk 0:00:16]}  Ka3 {[%clk 0:00:23]} 46. Ke6 {[%clk 0:00:16]}  Ra6+ {[%clk 0:00:20]} 47. Kd7 {[%clk 0:00:17]}  Rb6 {[%clk 0:00:12]} 48. Ra4# {[%clk 0:00:17]} 1-0


[Site "https://www.chess.com"]

[Event "Titled Tuesday Blitz February 14 Early 2023"]
[White "Chernov, Mikhail"]
[Black "Hrabinska, Myroslava"]
[WhiteFideId "24143170"]
[BlackFideId "14109190"]
[WhiteElo "2205"]
[BlackElo "2210"]
[Result "1-0"]
[Round "07"]
[TimeControl "180+2"]
[Date "2023.02.15"]
[WhiteClock "0:00:11"]
[BlackClock "0:00:01"]

1. e4 {[%clk 0:02:50]}  c5 {[%clk 0:02:59]} 2. Nf3 {[%clk 0:02:48]}  e6 {[%clk 0:02:54]} 3. d4 {[%clk 0:02:47]}  cxd4 {[%clk 0:02:54]} 4. Nxd4 {[%clk 0:02:48]}  a6 {[%clk 0:02:54]} 5. Be2 {[%clk 0:02:48]}  Qc7 {[%clk 0:02:48]} 6. O-O {[%clk 0:02:47]}  Nc6 {[%clk 0:02:48]} 7. Be3 {[%clk 0:02:47]}  Nf6 {[%clk 0:02:46]} 8. Nc3 {[%clk 0:02:47]}  b5 {[%clk 0:02:41]} 9. Nxc6 {[%clk 0:02:43]}  dxc6 {[%clk 0:02:40]} 10. f4 {[%clk 0:02:42]}  e5 {[%clk 0:02:02]} 11. fxe5 {[%clk 0:02:23]}  Qxe5 {[%clk 0:02:01]} 12. Kh1 {[%clk 0:02:23]}  Bc5 {[%clk 0:01:51]} 13. Bf4 {[%clk 0:02:18]}  Qd4 {[%clk 0:01:26]} 14. Bd3 {[%clk 0:02:15]}  O-O {[%clk 0:01:18]} 15. Qe1 {[%clk 0:01:57]}  Ng4 {[%clk 0:01:05]} 16. Bg3 {[%clk 0:01:36]}  Ne5 {[%clk 0:00:32]} 17. Ne2 {[%clk 0:01:17]}  Qd6 {[%clk 0:00:32]} 18. Qc3 {[%clk 0:01:11]}  f6 {[%clk 0:00:25]} 19. Rad1 {[%clk 0:00:34]}  Qe7 {[%clk 0:00:25]} 20. a3 {[%clk 0:00:27]}  Bg4 {[%clk 0:00:22]} 21. h3 {[%clk 0:00:22]}  Bxe2 {[%clk 0:00:21]} 22. Bxe2 {[%clk 0:00:23]}  Rad8 {[%clk 0:00:19]} 23. Kh2 {[%clk 0:00:17]}  Bb6 {[%clk 0:00:14]} 24. a4 {[%clk 0:00:15]}  Kh8 {[%clk 0:00:13]} 25. axb5 {[%clk 0:00:14]}  axb5 {[%clk 0:00:11]} 26. Qb3 {[%clk 0:00:13]}  Bd4 {[%clk 0:00:10]} 27. c3 {[%clk 0:00:12]}  Bc5 {[%clk 0:00:10]} 28. Qc2 {[%clk 0:00:12]}  Rxd1 {[%clk 0:00:09]} 29. Rxd1 {[%clk 0:00:12]}  Rd8 {[%clk 0:00:10]} 30. b4 {[%clk 0:00:12]}  Bb6 {[%clk 0:00:01]} 31. Rd2 {[%clk 0:00:11]} 1-0


[Site "https://www.chess.com"]

[Event "Titled Tuesday Blitz February 14 Early 2023"]
[White "Mendez Machado, Andre"]
[Black "Forgacs, Attila Jr."]
[WhiteFideId "6603793"]
[BlackFideId "773654"]
[WhiteElo "1974"]
[BlackElo "2264"]
[Result "0-1"]
[Round "07"]
[TimeControl "180+2"]
[Date "2023.02.15"]
[WhiteClock "0:00:08"]
[BlackClock "0:00:09"]

1. e4 {[%clk 0:02:56]}  e5 {[%clk 0:03:00]} 2. Nf3 {[%clk 0:02:56]}  Nc6 {[%clk 0:03:00]} 3. Bc4 {[%clk 0:02:56]}  Nf6 {[%clk 0:03:01]} 4. Ng5 {[%clk 0:02:56]}  d5 {[%clk 0:03:01]} 5. exd5 {[%clk 0:02:57]}  Na5 {[%clk 0:03:01]} 6. Bb5+ {[%clk 0:02:57]}  c6 {[%clk 0:03:02]} 7. dxc6 {[%clk 0:02:58]}  bxc6 {[%clk 0:03:03]} 8. Bd3 {[%clk 0:02:59]}  Nd5 {[%clk 0:03:03]} 9. Nf3 {[%clk 0:02:58]}  Bd6 {[%clk 0:03:02]} 10. O-O {[%clk 0:02:58]}  Nf4 {[%clk 0:03:02]} 11. Be2 {[%clk 0:02:53]}  Nxg2 {[%clk 0:02:48]} 12. Kxg2 {[%clk 0:02:47]}  e4 {[%clk 0:02:47]} 13. Ng1 {[%clk 0:01:53]}  Qh4 {[%clk 0:02:35]} 14. f4 {[%clk 0:01:43]}  exf3+ {[%clk 0:02:29]} 15. Nxf3 {[%clk 0:01:33]}  Qh3+ {[%clk 0:02:12]} 16. Kh1 {[%clk 0:01:24]}  Bg4 {[%clk 0:02:04]} 17. Rf2 {[%clk 0:01:21]}  O-O {[%clk 0:02:01]} 18. Qf1 {[%clk 0:01:17]}  Qh5 {[%clk 0:01:49]} 19. Nc3 {[%clk 0:01:06]}  Rae8 {[%clk 0:01:48]} 20. Ng1 {[%clk 0:00:59]}  f5 {[%clk 0:01:16]} 21. d3 {[%clk 0:00:42]}  g5 {[%clk 0:00:51]} 22. Bxg4 {[%clk 0:00:17]}  fxg4 {[%clk 0:00:48]} 23. Rxf8+ {[%clk 0:00:16]}  Rxf8 {[%clk 0:00:48]} 24. Qg2 {[%clk 0:00:16]}  Qh4 {[%clk 0:00:46]} 25. Be3 {[%clk 0:00:15]}  Bf4 {[%clk 0:00:24]} 26. Bxf4 {[%clk 0:00:14]}  gxf4 {[%clk 0:00:25]} 27. Nf3 {[%clk 0:00:13]}  Qh5 {[%clk 0:00:20]} 28. Nd4 {[%clk 0:00:13]}  f3 {[%clk 0:00:17]} 29. Qg3 {[%clk 0:00:11]}  c5 {[%clk 0:00:16]} 30. Ne6 {[%clk 0:00:11]}  Rf6 {[%clk 0:00:16]} 31. Nf4 {[%clk 0:00:10]}  Qf5 {[%clk 0:00:15]} 32. Ncd5 {[%clk 0:00:11]}  Rd6 {[%clk 0:00:14]} 33. Rg1 {[%clk 0:00:11]}  Rxd5 {[%clk 0:00:14]} 34. Nxd5 {[%clk 0:00:10]}  Qxd5 {[%clk 0:00:14]} 35. Qxg4+ {[%clk 0:00:10]}  Kf8 {[%clk 0:00:13]} 36. Qg7+ {[%clk 0:00:11]}  Ke8 {[%clk 0:00:14]} 37. Qg8+ {[%clk 0:00:11]}  Qxg8 {[%clk 0:00:14]} 38. Rxg8+ {[%clk 0:00:12]}  Kf7 {[%clk 0:00:14]} 39. Ra8 {[%clk 0:00:11]}  Nc6 {[%clk 0:00:14]} 40. Kg1 {[%clk 0:00:11]}  Kf6 {[%clk 0:00:13]} 41. Kf2 {[%clk 0:00:11]}  Ke5 {[%clk 0:00:13]} 42. Kxf3 {[%clk 0:00:11]}  Nd4+ {[%clk 0:00:14]} 43. Kf2 {[%clk 0:00:09]}  Nxc2 {[%clk 0:00:15]} 44. Rxa7 {[%clk 0:00:10]}  Nb4 {[%clk 0:00:15]} 45. Rxh7 {[%clk 0:00:10]}  Nxd3+ {[%clk 0:00:16]} 46. Ke3 {[%clk 0:00:09]}  Nxb2 {[%clk 0:00:17]} 47. Rh5+ {[%clk 0:00:10]}  Kd6 {[%clk 0:00:17]} 48. Rh6+ {[%clk 0:00:10]}  Kd5 {[%clk 0:00:16]} 49. h4 {[%clk 0:00:10]}  Nc4+ {[%clk 0:00:16]} 50. Kd3 {[%clk 0:00:10]}  Ne5+ {[%clk 0:00:16]} 51. Kc3 {[%clk 0:00:09]}  Ng4 {[%clk 0:00:16]} 52. Rh5+ {[%clk 0:00:08]}  Kd6 {[%clk 0:00:16]} 53. Rg5 {[%clk 0:00:08]}  Ne3 {[%clk 0:00:16]} 54. h5 {[%clk 0:00:07]}  Nd1+ {[%clk 0:00:13]} 55. Kd2 {[%clk 0:00:07]}  Nf2 {[%clk 0:00:12]} 56. h6 {[%clk 0:00:07]}  Ne4+ {[%clk 0:00:12]} 57. Ke3 {[%clk 0:00:06]}  Nxg5 {[%clk 0:00:13]} 58. Kf4 {[%clk 0:00:07]}  Nh7 {[%clk 0:00:10]} 59. Kf5 {[%clk 0:00:08]}  c4 {[%clk 0:00:09]} 60. Kg6 {[%clk 0:00:09]}  c3 {[%clk 0:00:07]} 61. Kxh7 {[%clk 0:00:10]}  c2 {[%clk 0:00:08]} 62. Kg7 {[%clk 0:00:10]}  c1=Q {[%clk 0:00:08]} 63. h7 {[%clk 0:00:11]}  Qg5+ {[%clk 0:00:08]} 64. Kf8 {[%clk 0:00:09]}  Qf6+ {[%clk 0:00:07]} 65. Kg8 {[%clk 0:00:08]}  Qg6+ {[%clk 0:00:08]} 66. Kh8 {[%clk 0:00:08]}  Qf7 {[%clk 0:00:08]} 67. a4 {[%clk 0:00:08]}  Qf8# {[%clk 0:00:09]} 0-1


[Site "https://www.chess.com"]